fUST/lending_fUST_20240408
["ID","MTS","AMOUNT","RATE_DAILY","PERIOD"]
[321843805,1712561451090,160.63706846,0.00023899,2]
[321843806,1712561470932,749.71333205,0.00023422,2]
[321843807,1712561627064,296.466093,0.00022312,2]
[321843808,1712561655333,22654.1324935,0.00022308,2]
[321843809,1712561662841,264.51967544,0.00022555,7]
[321843811,1712561683065,2165.05318563,0.00022555,5]
[321843812,1712561686202,151.0,0.00025788,30]
[321843813,1712561699068,2165.05318563,0.00022555,5]
[321843814,1712561719060,2165.05318563,0.00022555,5]
[321843815,1712561735092,2165.05318563,0.00022555,5]
[321843817,1712561738948,715.98547106,0.00022448,2]
[321843818,1712561751118,2165.05318563,0.00022555,5]
[321843820,1712561771133,2185.78027407,0.00022555,5]
[321843823,1712561917669,1938.31520362,0.00022419,2]
[321843824,1712561919424,1938.31520359,0.0002242,2]
[321843825,1712561921380,1938.31520359,0.00022422,2]
[321843826,1712561923357,1938.31520359,0.00022423,2]
[321843827,1712561924591,746.9891646,0.0002242,2]
[321843828,1712561925353,1938.31520359,0.00022424,2]
[321843830,1712561962439,314.1997281,0.00022424,2]
[321843831,1712561968797,384.7876243,0.00022424,2]
[321843832,1712561977592,244.11720929,0.00022424,2]
[321843833,1712561980797,273.49186866,0.00022424,2]
[321843834,1712562040759,435.59689206,0.000225,2]
[321843835,1712562042949,185.5268534,0.000225,2]
[321843836,1712562044503,282.66267272,0.000225,2]
[321843837,1712562045139,215.70131407,0.000225,2]
[321843838,1712562045877,781.66926533,0.000225,2]
[321843839,1712562046738,473.12701109,0.000225,2]
[321843840,1712562046918,154.9690062,0.000225,2]
[321843841,1712562050618,11365.99647707,0.000225,2]
[321843842,1712562051256,211.10073738,0.000225,2]
[321843843,1712562053590,5781.60876067,0.000225,2]
[321843844,1712562055920,4641.29533952,0.000225,2]
[321843845,1712562055954,42945.26684987,0.000225,2]
[321843846,1712562056898,154.9690062,0.000225,2]
[321843847,1712562057015,154.9690062,0.000225,2]
[321843848,1712562059722,1250.0314996,0.000225,2]
[321844322,1712562114733,653.61551899,0.00022176,2]
[321844973,1712562131528,239.87586579,0.0002217,2]
[321844974,1712562210344,144.50861522,0.00021263,2]
[321844975,1712562217963,-188.58893471,0.00021262,2]
[321844976,1712562217997,-303.74719216,0.00021262,2]
[321844977,1712562218029,-139.07160569,0.00021263,2]
[321844978,1712562218197,-12.88587209,0.00021263,2]
[321844979,1712562219532,562.64730962,0.00021262,2]
[321844980,1712562234096,-12000.0,0.0002126,2]
[321844981,1712562234199,-4281.4404205,0.0002126,2]
[321844983,1712562480083,-922.82268959,0.0002113,2]
[321844984,1712562480190,-18.83311611,0.0002113,2]
[321844985,1712562543301,193.57252445,0.000204,2]
[321844986,1712562593775,-154.9690062,0.00022011,2]
[321844987,1712562593800,-204.01835292,0.00022011,2]
[321844988,1712562593874,-7.32627264,0.00022011,2]
[321844989,1712562595458,271.8195425,0.00022011,2]
[321844990,1712562595761,79.84154398,0.00022011,2]
[321844991,1712562596000,-3513.20655217,0.00022011,2]
[321844992,1712562596215,-71.6980929,0.00022011,2]
[321844993,1712562597306,473.12701109,0.00022011,2]
[321844994,1712562601386,-154.9690062,0.00022011,2]
[321844995,1712562601420,-273.91003914,0.00022011,2]
[321844996,1712562601476,-8.75263358,0.00022011,2]
[321844997,1712562602829,154.9690062,0.00022011,2]
[321844998,1712562606012,-2527.67027377,0.00022011,2]
[321844999,1712562606110,-51.58510763,0.00022011,2]
[321845000,1712562606257,1865.50634258,0.00022011,2]
[321845001,1712562606500,610.57882356,0.00022011,2]
[321845002,1712562606526,1828.19621573,0.00022011,2]
[321845003,1712562606551,1296.04964788,0.00022011,2]
[321845004,1712562607145,532.14656785,0.00022011,2]
[321845005,1712562607375,-3121.44262782,0.00022011,2]
[321845006,1712562607483,-63.70291077,0.00022011,2]
[321845007,1712562612732,-205.65384658,0.00022011,2]
[321845008,1712562612759,-198.92706278,0.00022011,2]
[321845009,1712562612805,-8.25675325,0.00022011,2]
[321845010,1712562616015,-868.85809258,0.00022011,2]
[321845011,1712562616109,-17.73179781,0.00022011,2]
[321845012,1712562616134,-688.99595907,0.00022011,2]
[321845013,1712562616929,162.1303357,0.00022011,2]
[321845014,1712562616954,619.53892963,0.00022011,2]
[321845015,1712562617460,73.05427211,0.0002201,2]
[321845016,1712562617484,81.91473409,0.0002201,2]
[321845017,1712562617904,282.23953123,0.0002201,2]
[321845018,1712562617950,154.9690062,0.0002201,2]
[321845019,1712562619948,-211.38728779,0.0002201,2]
[321845020,1712562620052,-4.31402628,0.0002201,2]
[321845021,1712562621859,207.07326151,0.0002201,2]
[321845022,1712562621884,211.38728779,0.0002201,2]
[321845023,1712562621990,-2026.10527147,0.0002201,2]
[321845024,1712562623506,-850.95580576,0.00022011,2]
[321845025,1712562623619,-17.36644502,0.00022011,2]
[321845026,1712562628927,-1281.00454887,0.00022011,2]
[321845027,1712562629081,-26.14294998,0.00022011,2]
[321845028,1712562629106,-1254.86159889,0.00022011,2]
[321845029,1712562629180,-675.36428405,0.00022011,2]
[321845030,1712562629962,154.9690062,0.00022011,2]
[321845031,1712562630203,450.67125862,0.00022011,2]
[321845032,1712562630229,1642.12712845,0.00022011,2]
[321845033,1712562630739,220.14831517,0.00022011,2]
[321845034,1712562630776,54.96601264,0.00022011,2]
[321845035,1712562630801,222.00103868,0.00022011,2]
[321845071,1712562631877,271.42771029,0.00022011,2]
[321845072,1712562631902,253.16566742,0.00022011,2]
[321845094,1712562632768,-240.61118676,0.00022012,2]
[321845096,1712562632778,-407.59656825,0.00022012,2]
[321845098,1712562632787,-211.10073738,0.00022012,2]
[321845100,1712562632796,-157.22434872,0.00022012,2]
[321845102,1712562632806,-236.52095518,0.00022012,2]
[321845167,1712562633409,-63.47904482,0.00022012,2]
[321845169,1712562633418,-22740.29978068,0.00022012,2]
[321845171,1712562633429,-300.0,0.00022012,2]
[321845173,1712562633439,-363.03730881,0.00022012,2]
[321845175,1712562633450,-180.0,0.00022012,2]
[321845177,1712562633459,-154.9690062,0.00022013,2]
[321845179,1712562633469,-192.96186117,0.00022013,2]
[321845181,1712562633479,-5564.97168216,0.00022013,2]
[321845183,1712562633488,-687.0280134,0.00022014,2]
[321845185,1712562633497,-156.54809607,0.00022014,2]
[321845187,1712562633506,-2120.63245232,0.00022014,2]
[321845189,1712562633516,-211.48205244,0.00022014,2]
[321845191,1712562633525,-1580.6844523,0.00022014,2]
[321845192,1712562633535,-211.34462556,0.00022014,2]
[321845194,1712562633544,-154.9690062,0.00022014,2]
[321845196,1712562633554,-473.12701109,0.00022014,2]
[321845198,1712562633563,-290.6674937,0.00022014,2]
[321845200,1712562633573,-1667.90842594,0.00022014,2]
[321845202,1712562633583,-282.66267272,0.00022014,2]
[321845204,1712562633592,-3717.29210644,0.00022014,2]
[321845206,1712562633601,-1865.50634258,0.00022014,2]
[321845208,1712562633611,-2750.00494873,0.00022014,2]
[321845209,1712562633621,-290.23277151,0.00022014,2]
[321845210,1712562633631,-205.65384658,0.00022014,2]
[321845211,1712562633641,-155.1811457,0.00022015,2]
[321845212,1712562633651,-688.99595907,0.00022015,2]
[321845213,1712562633660,-207.18381603,0.00022015,2]
[321845214,1712562633671,-781.66926533,0.00022015,2]
[321845215,1712562633681,-886.58989039,0.00022015,2]
[321845216,1712562633690,-282.23953123,0.00022015,2]
[321845217,1712562633700,-609.82929958,0.00022015,2]
[321845218,1712562633709,-158.11285651,0.00022015,2]
[321845219,1712562633719,-280.7995703,0.00022015,2]
[321845220,1712562633729,-154.9690062,0.00022016,2]
[321845221,1712562633739,-47586.56218939,0.00022016,2]
[321845222,1712562633748,-593.7687348,0.00022025,2]
[321845223,1712562633758,-228.06456745,0.00022127,2]
[321845224,1712562633768,-10343.973736,0.00022146,2]
[321845225,1712562633778,-171.809124,0.00022257,2]
[321845226,1712562633788,-340.5519387,0.00022257,2]
[321845227,1712562633798,-192.34526529,0.00022257,2]
[321845229,1712562633807,-5802.87095213,0.00022278,2]
[321845230,1712562633819,-151.0,0.00022278,2]
[321845232,1712562633828,-151.0,0.00022278,2]
[321845234,1712562633838,-1368.73347,0.00022278,2]
[321845236,1712562633847,-1368.73347,0.00022278,2]
[321845238,1712562633857,-239.87586562,0.0002231,2]
[321845240,1712562633867,-239.87586562,0.0002245,2]
[321845242,1712562633877,-946.72308658,0.00022498,2]
[321845245,1712562633886,-236.48341961,0.00022503,2]
[321845246,1712562633896,-310.74789238,0.00022503,2]
[321845249,1712562633905,-156.66803859,0.00022503,2]
[321845250,1712562633915,-3207.7614153,0.00022503,2]
[321845253,1712562633926,-662.307988,0.00022509,2]
[321845255,1712562633936,-156.00969868,0.00022522,2]
[321845256,1712562633946,-296.79092905,0.00022522,2]
[321845259,1712562633955,-155.74346945,0.00022522,2]
[321845261,1712562633964,-151.0,0.00022522,2]
[321845263,1712562633974,-239.87586562,0.0002259,2]
[321845265,1712562633983,-239.87586562,0.0002273,2]
[321845267,1712562633992,-239.87586562,0.0002287,2]
[321845269,1712562634002,-242.6744587,0.00023,2]
[321845270,1712562634011,-239.87586562,0.0002301,2]
[321845273,1712562634021,-239.87586562,0.0002315,2]
[321845274,1712562634031,-151.0,0.0002329,2]
[321845276,1712562634041,-151.0,0.0002329,2]
[321845278,1712562634050,-151.0,0.0002329,2]
[321845281,1712562634059,-239.87586562,0.0002329,2]
[321845283,1712562634068,-263.66004734,0.00023302,7]
[321845285,1712562634078,-290.569538,0.00023315,2]
[321845287,1712562634087,-151.0,0.00023315,2]
[321845289,1712562634096,-151.0,0.00023315,2]
[321845291,1712562634108,-151.0,0.00023315,2]
[321845293,1712562634117,-151.0,0.00023315,2]
[321845295,1712562634126,-192.486864,0.00023315,2]
[321845297,1712562634135,-151.0,0.00023315,2]
[321845299,1712562634144,-151.0,0.00023315,2]
[321845301,1712562634154,-327.247162,0.00023315,2]
[321845303,1712562634164,-327.247162,0.00023315,2]
[321845308,1712562634231,-327.247162,0.00023315,2]
[321845309,1712562634253,-327.247162,0.00023315,2]
[321845310,1712562634264,-151.0,0.00023315,2]
[321845311,1712562634273,-151.0,0.00023315,2]
[321845312,1712562634283,-151.0,0.00023315,2]
[321845313,1712562634295,-151.0,0.00023315,2]
[321845314,1712562634304,-151.0,0.00023315,2]
[321845315,1712562634313,-151.0,0.00023315,2]
[321845316,1712562634323,-151.0,0.00023315,2]
[321845317,1712562634332,-1368.73347,0.00023315,2]
[321845318,1712562634341,-1368.73347,0.00023315,2]
[321845319,1712562634351,-1368.73347,0.00023315,2]
[321845320,1712562634360,-1368.73347,0.00023315,2]
[321845321,1712562634369,-177.31002945,0.00023422,2]
[321845322,1712562634379,-239.87586562,0.0002343,2]
[321845323,1712562634388,-239.87586562,0.00023571,2]
[321845324,1712562634397,-239.87586562,0.00023711,2]
[321845325,1712562634407,-239.87586562,0.00023851,2]
[321845326,1712562634416,-153.0,0.0002389,2]
[321845327,1712562634430,-420.0,0.00023919,2]
[321845328,1712562634440,-239.87586562,0.00023991,2]
[321845329,1712562634450,-210.52604376,0.000241,2]
[321845330,1712562634459,-210.52604376,0.000241,2]
[321845331,1712562634469,-239.87586562,0.00024131,2]
[321845332,1712562634478,-284.71790356,0.0002416,2]
[321845333,1712562634487,-420.0,0.00024213,2]
[321845334,1712562634496,-239.87586562,0.00024271,2]
[321845335,1712562634506,-239.87586562,0.00024411,2]
[321845336,1712562634515,-174.706826,0.00024478,2]
[321845337,1712562634525,-306.0,0.00024478,2]
[321845338,1712562634534,-153.0,0.00024478,2]
[321845339,1712562634543,-153.0,0.00024478,2]
[321845340,1712562634552,-239.87586562,0.00024551,2]
[321845341,1712562634561,-153.0,0.00024556,2]
[321845342,1712562634570,-154.1119477,0.00024556,2]
[321845343,1712562634579,-153.4615978,0.00024556,2]
[321845344,1712562634588,-2000.0,0.00024557,2]
[321845345,1712562634597,-213.14058255,0.00024654,2]
[321845346,1712562634607,-166.90512393,0.00024654,2]
[321845347,1712562634616,-1140.11063756,0.00024655,2]
[321845348,1712562634625,-2178.95300094,0.00024655,2]
[321845349,1712562634636,-302.02900181,0.00024655,2]
[321845350,1712562634645,-474.72574577,0.00024655,2]
[321845351,1712562634654,-216.88392115,0.00024655,2]
[321845352,1712562634663,-486.34921375,0.00024655,2]
[321845353,1712562634674,-382.91502571,0.00024655,2]
[321845354,1712562634683,-155.30180092,0.00024655,2]
[321845355,1712562634693,-212.77914189,0.00024655,2]
[321845356,1712562634703,-188.00205176,0.00024655,2]
[321845357,1712562634712,-1287.29576434,0.00024655,2]
[321845358,1712562634722,-306.03040864,0.00024655,2]
[321845359,1712562634732,-940.42073728,0.00024655,2]
[321845360,1712562634742,-151.0,0.00024655,2]
[321845361,1712562634752,-151.0,0.00024655,2]
[321845362,1712562634761,-151.0,0.00024655,2]
[321845363,1712562634770,-151.0,0.00024655,2]
[321845364,1712562634780,-327.247162,0.00024655,2]
[321845365,1712562634789,-327.247162,0.00024655,2]
[321845366,1712562634799,-151.0,0.00024655,2]
[321845367,1712562634808,-151.0,0.00024655,2]
[321845368,1712562634817,-151.0,0.00024655,2]
[321845369,1712562634827,-151.0,0.00024655,2]
[321845370,1712562634836,-151.0,0.00024655,2]
[321845371,1712562634845,-1368.73347,0.00024655,2]
[321845372,1712562634855,-1368.73347,0.00024655,2]
[321845373,1712562634864,-632.06035499,0.00024657,2]
[321845374,1712562634874,-165.0972141,0.00024657,2]
[321845375,1712562634883,-500.0,0.00024657,2]
[321845376,1712562634892,-504.47646314,0.00024657,2]
[321845377,1712562634902,-500.0,0.00024657,2]
[321845378,1712562634911,-500.0,0.00024657,2]
[321845379,1712562634922,-645.79,0.00024657,2]
[321845380,1712562634933,-500.0,0.00024657,2]
[321845381,1712562634942,-507.64607745,0.00024657,2]
[321845382,1712562634952,-905.93,0.00024657,2]
[321845383,1712562634961,-500.79000068,0.00024657,2]
[321845384,1712562634971,-500.0,0.00024657,2]
[321845385,1712562634981,-500.0,0.00024657,2]
[321845386,1712562634991,-500.0,0.00024657,2]
[321845387,1712562635000,-500.0,0.00024657,2]
[321845388,1712562635012,-505.06078839,0.00024657,2]
[321845389,1712562635022,-500.0,0.00024657,2]
[321845390,1712562635032,-639.69,0.00024657,2]
[321845391,1712562635042,-500.0,0.00024657,2]
[321845392,1712562635052,-504.06978442,0.00024657,2]
[321845393,1712562635063,-500.0,0.00024657,2]
[321845394,1712562635073,-503.05088282,0.00024657,2]
[321845395,1712562635083,-500.0,0.00024657,2]
[321845396,1712562635094,-500.0,0.00024657,2]
[321845397,1712562635104,-449.68671053,0.00024657,2]
[321845398,1712562635114,-500.0,0.00024657,2]
[321845399,1712562635124,-500.0,0.00024657,2]
[321845400,1712562635135,-500.0,0.00024657,2]
[321845401,1712562635145,-500.0,0.00024657,2]
[321845402,1712562635156,-500.0,0.00024657,2]
[321845403,1712562635170,-500.0,0.00024657,2]
[321845404,1712562635182,-537.05,0.00024657,2]
[321845405,1712562635192,-2551.9,0.00024657,2]
[321845406,1712562635203,-500.0,0.00024657,2]
[321845407,1712562635214,-500.0,0.00024657,2]
[321845408,1712562635224,-500.0,0.00024657,2]
[321845409,1712562635235,-489.66683078,0.00024657,2]
[321845410,1712562635246,-500.0,0.00024657,2]
[321845411,1712562635256,-500.0,0.00024657,2]
[321845412,1712562635267,-500.0,0.00024657,2]
[321845413,1712562635277,-500.0,0.00024657,2]
[321845414,1712562635287,-500.0,0.00024657,2]
[321845415,1712562635296,-500.0,0.00024657,2]
[321845416,1712562635306,-500.0,0.00024657,2]
[321845417,1712562635316,-500.0,0.00024657,2]
[321845418,1712562635326,-500.0,0.00024657,2]
[321845419,1712562635336,-500.0,0.00024657,2]
[321845420,1712562635346,-388.07557251,0.00024657,2]
[321845421,1712562635356,-241.66120892,0.00024657,2]
[321845422,1712562635366,-500.0,0.00024657,2]
[321845423,1712562635376,-500.0,0.00024657,2]
[321845424,1712562635386,-513.81586279,0.00024657,2]
[321845425,1712562635396,-500.0,0.00024657,2]
[321845426,1712562635405,-500.0,0.00024657,2]
[321845427,1712562635415,-500.0,0.00024657,2]
[321845428,1712562635426,-507.65052569,0.00024657,2]
[321845429,1712562635437,-500.0,0.00024657,2]
[321845430,1712562635446,-493.59131358,0.00024657,2]
[321845431,1712562635456,-500.0,0.00024657,2]
[321845432,1712562635466,-701.21,0.00024657,2]
[321845433,1712562635476,-500.0,0.00024657,2]
[321845434,1712562635485,-230.00438334,0.00024657,2]
[321845435,1712562635494,-500.0,0.00024657,2]
[321845436,1712562635504,-500.0,0.00024657,2]
[321845437,1712562635513,-500.0,0.00024657,2]
[321845438,1712562635523,-500.0,0.00024657,2]
[321845439,1712562635532,-394.42829853,0.00024657,2]
[321845440,1712562635542,-718.57,0.00024657,2]
[321845441,1712562635551,-539.51,0.00024657,2]
[321845442,1712562635560,-486.74440102,0.00024657,2]
[321845443,1712562635570,-151.0,0.00024657,2]
[321845444,1712562635579,-151.168084,0.00024657,2]
[321845445,1712562635588,-522.12108656,0.00024657,2]
[321845446,1712562635598,-693.34,0.00024657,2]
[321845447,1712562635608,-312.327491,0.00024657,2]
[321845448,1712562635618,-312.327491,0.00024657,2]
[321845449,1712562635627,-312.327491,0.00024657,2]
[321845450,1712562635637,-312.327491,0.00024657,2]
[321845451,1712562635647,-312.327491,0.00024657,2]
[321845452,1712562635657,-312.327491,0.00024657,2]
[321845453,1712562635666,-500.0,0.00024657,2]
[321845454,1712562635677,-312.327491,0.00024657,2]
[321845455,1712562635687,-312.327491,0.00024657,2]
[321845456,1712562635764,-252.93676011,0.00024657,2]
[321845457,1712562635774,-312.327491,0.00024657,2]
[321845458,1712562635784,-312.327491,0.00024657,2]
[321845459,1712562635793,-312.327491,0.00024657,2]
[321845460,1712562635802,-312.327491,0.00024657,2]
[321845461,1712562635812,-312.327491,0.00024657,2]
[321845462,1712562635821,-312.327491,0.00024657,2]
[321845463,1712562635830,-500.0,0.00024657,2]
[321845464,1712562635840,-312.327491,0.00024657,2]
[321845465,1712562635849,-312.327491,0.00024657,2]
[321845466,1712562635858,-312.327491,0.00024657,2]
[321845467,1712562635868,-312.327491,0.00024657,2]
[321845468,1712562635877,-312.327491,0.00024657,2]
[321845469,1712562635887,-312.327499,0.00024657,2]
[321845470,1712562635897,-500.0,0.00024657,2]
[321845471,1712562635906,-519.77069824,0.00024657,2]
[321845472,1712562635915,-500.0,0.00024657,2]
[321845473,1712562635924,-151.0,0.00024657,2]
[321845474,1712562635933,-1033.43,0.00024657,2]
[321845475,1712562635943,-500.0,0.00024657,2]
[321845476,1712562635953,-500.0,0.00024657,2]
[321845477,1712562635963,-512.25399217,0.00024657,2]
[321845478,1712562635973,-500.0,0.00024657,2]
[321845479,1712562635982,-500.0,0.00024657,2]
[321845480,1712562635991,-500.0,0.00024657,2]
[321845481,1712562636001,-377.69714143,0.00024657,2]
[321845482,1712562636011,-500.0,0.00024657,2]
[321845483,1712562636020,-500.0,0.00024657,2]
[321845484,1712562636030,-500.0,0.00024657,2]
[321845485,1712562636039,-500.0,0.00024657,2]
[321845486,1712562636048,-500.0,0.00024657,2]
[321845487,1712562636058,-500.0,0.00024657,2]
[321845488,1712562636067,-500.0,0.00024657,2]
[321845489,1712562636076,-500.0,0.00024657,2]
[321845490,1712562636085,-500.0,0.00024657,2]
[321845491,1712562636094,-500.0,0.00024657,2]
[321845492,1712562636104,-500.0,0.00024657,2]
[321845493,1712562636113,-500.0,0.00024657,2]
[321845494,1712562636121,-500.0,0.00024657,2]
[321845495,1712562636130,-500.0,0.00024657,2]
[321845496,1712562636139,-467.62234672,0.00024657,2]
[321845497,1712562636148,-500.0,0.00024657,2]
[321845498,1712562636159,-500.0,0.00024657,2]
[321845499,1712562636168,-500.0,0.00024657,2]
[321845500,1712562636181,-151.0,0.00024657,2]
[321845501,1712562636190,-500.0,0.00024657,2]
[321845502,1712562636199,-256.180668,0.00024657,2]
[321845503,1712562636210,-500.0,0.00024657,2]
[321845504,1712562636218,-500.0,0.00024657,2]
[321845505,1712562636227,-500.0,0.00024657,2]
[321845506,1712562636236,-500.0,0.00024657,2]
[321845507,1712562636245,-500.0,0.00024657,2]
[321845508,1712562636257,-500.0,0.00024657,2]
[321845509,1712562636267,-500.0,0.00024657,2]
[321845510,1712562636276,-500.0,0.00024657,2]
[321845511,1712562636286,-500.0,0.00024657,2]
[321845512,1712562636295,-500.0,0.00024657,2]
[321845513,1712562636304,-524.83974503,0.00024657,2]
[321845514,1712562636313,-500.0,0.00024657,2]
[321845515,1712562636323,-151.0,0.00024657,2]
[321845516,1712562636331,-151.869922,0.00024657,2]
[321845517,1712562636342,-500.0,0.00024657,2]
[321845518,1712562636351,-227.06133382,0.00024657,2]
[321845519,1712562636360,-500.0,0.00024657,2]
[321845520,1712562636370,-500.0,0.00024657,2]
[321845521,1712562636379,-2825.18,0.00024657,2]
[321845522,1712562636388,-500.0,0.00024657,2]
[321845523,1712562636397,-500.0,0.00024657,2]
[321845524,1712562636407,-500.0,0.00024657,2]
[321845525,1712562636416,-500.0,0.00024657,2]
[321845526,1712562636426,-153.07107125,0.00024657,2]
[321845527,1712562636435,-500.0,0.00024657,2]
[321845528,1712562636444,-511.59164546,0.00024657,2]
[321845529,1712562636454,-500.0,0.00024657,2]
[321845530,1712562636463,-500.0,0.00024657,2]
[321845531,1712562636473,-500.0,0.00024657,2]
[321845532,1712562636482,-500.0,0.00024657,2]
[321845533,1712562636490,-500.0,0.00024657,2]
[321845534,1712562636499,-500.0,0.00024657,2]
[321845535,1712562636508,-613.90290974,0.00024657,2]
[321845536,1712562636518,-500.0,0.00024657,2]
[321845537,1712562636526,-1320.93,0.00024657,2]
[321845538,1712562636537,-503.64099157,0.00024657,2]
[321845539,1712562636546,-515.14947714,0.00024657,2]
[321845540,1712562636555,-500.0,0.00024657,2]
[321845541,1712562636564,-978.67,0.00024657,2]
[321845542,1712562636573,-500.0,0.00024657,2]
[321845543,1712562636582,-512.09357786,0.00024657,2]
[321845544,1712562636591,-500.0,0.00024657,2]
[321845545,1712562636600,-500.0,0.00024657,2]
[321845546,1712562636608,-500.0,0.00024657,2]
[321845547,1712562636618,-500.0,0.00024657,2]
[321845548,1712562636627,-500.0,0.00024657,2]
[321845549,1712562636636,-500.0,0.00024657,2]
[321845550,1712562636645,-500.0,0.00024657,2]
[321845551,1712562636654,-298.7034274,0.00024657,2]
[321845552,1712562636663,-481.96729605,0.00024657,2]
[321845553,1712562636672,-4435.2,0.00024657,2]
[321845554,1712562636683,-502.5901833,0.00024657,2]
[321845555,1712562636692,-151.0,0.00024657,2]
[321845556,1712562636701,-151.0,0.00024657,2]
[321845557,1712562636710,-151.0,0.00024657,2]
[321845558,1712562636719,-151.0,0.00024657,2]
[321845559,1712562636728,-151.0,0.00024657,2]
[321845560,1712562636739,-151.0,0.00024657,2]
[321845561,1712562636749,-151.0,0.00024657,2]
[321845562,1712562636758,-500.0,0.00024657,2]
[321845563,1712562636767,-151.0,0.00024657,2]
[321845564,1712562636776,-500.0,0.00024657,2]
[321845565,1712562636785,-500.0,0.00024657,2]
[321845566,1712562636795,-500.0,0.00024657,2]
[321845567,1712562636804,-584.93935614,0.00024657,2]
[321845568,1712562636814,-164.81904154,0.00024657,2]
[321845569,1712562636823,-478.2224098,0.00024657,2]
[321845570,1712562636832,-506.4771378,0.00024657,2]
[321845571,1712562636841,-500.0,0.00024657,2]
[321845572,1712562636850,-500.0,0.00024657,2]
[321845573,1712562636859,-606.06342105,0.00024657,2]
[321845574,1712562636869,-522.14853697,0.00024657,2]
[321845575,1712562636878,-500.0,0.00024657,2]
[321845576,1712562636887,-286.92564802,0.00024657,2]
[321845577,1712562636896,-522.58179769,0.00024657,2]
[321845578,1712562636905,-520.57558908,0.00024657,2]
[321845579,1712562636914,-500.0,0.00024657,2]
[321845580,1712562636924,-500.0,0.00024657,2]
[321845581,1712562636935,-4257.06,0.00024657,2]
[321845582,1712562636946,-500.0,0.00024657,2]
[321845583,1712562636957,-3329.18,0.00024657,2]
[321845584,1712562636967,-500.0,0.00024657,2]
[321845585,1712562636977,-641.1477032,0.00024657,2]
[321845586,1712562636987,-500.0,0.00024657,2]
[321845587,1712562636997,-3460.88,0.00024657,2]
[321845588,1712562637006,-638.52,0.00024657,2]
[321845589,1712562637016,-1825.92,0.00024657,2]
[321845590,1712562637026,-151.0,0.00024657,2]
[321845591,1712562637035,-151.0,0.00024657,2]
[321845592,1712562637107,-152.766146,0.00024657,2]
[321845593,1712562637116,-500.0,0.00024657,2]
[321845594,1712562637125,-514.7428645,0.00024657,2]
[321845595,1712562637134,-523.92757053,0.00024657,2]
[321845596,1712562637143,-9186.73,0.00024657,2]
[321845597,1712562637153,-583.7,0.00024657,2]
[321845598,1712562637163,-500.0,0.00024657,2]
[321845599,1712562637173,-500.0,0.00024657,2]
[321845600,1712562637185,-233.54251645,0.00024657,2]
[321845601,1712562637194,-631.35,0.00024657,2]
[321845602,1712562637203,-327.247162,0.00024657,2]
[321845603,1712562637212,-327.247162,0.00024657,2]
[321845604,1712562637220,-327.247162,0.00024657,2]
[321845605,1712562637230,-327.247162,0.00024657,2]
[321845606,1712562637239,-327.247162,0.00024657,2]
[321845607,1712562637250,-327.247162,0.00024657,2]
[321845608,1712562637259,-327.247162,0.00024657,2]
[321845609,1712562637268,-327.247162,0.00024657,2]
[321845610,1712562637278,-327.247162,0.00024657,2]
[321845612,1712562637287,-327.247162,0.00024657,2]
[321845613,1712562637296,-327.247162,0.00024657,2]
[321845614,1712562637304,-327.247162,0.00024657,2]
[321845615,1712562637313,-327.247162,0.00024657,2]
[321845616,1712562637323,-327.247162,0.00024657,2]
[321845617,1712562637332,-500.0,0.00024657,2]
[321845618,1712562637340,-500.0,0.00024657,2]
[321845619,1712562637349,-500.0,0.00024657,2]
[321845620,1712562637358,-602.181279,0.00024657,2]
[321845621,1712562637367,-500.0,0.00024657,2]